Cogmind - Beta 15 @@@ ROGUE MODE // 2025.10.06 @ 23:26:26 Player: Dylbot Result: Destroyed by G-34 Mercenary with Small Laser Performance ------------- Evolutions (1) 500 Regions Visited (2) 400 Robots Destroyed (21) 105 Value Destroyed (453) 453 Prototype IDs (0) 0 Alien Tech Used (0) 0 Bonus (0) 0 TOTAL SCORE: 1458 Bonus ------- None Cogmind --------- Core Integrity 0/400 Matter 49/300 Energy 70/100 System Corruption 0% Temperature Cool (60) Movement Core (750) Ox14 Location -9/Materials Parts ------- > --- POWER (2) -------- (None) > --- PROPULSION (2) --- (None) > --- UTILITY (2) ------ High-capacity Storage Unit Structural Scanner > --- WEAPON (3) ------- Particle Cannon > --- INVENTORY (20) --- Aluminum Leg Aluminum Leg Grenade Launcher Mini Grenade Launcher Datajack Peak State ------------ > --- POWER ------------ Ion Engine Ion Engine > --- PROPULSION ------- Wheel Compact Wheel > --- UTILITY ---------- High-capacity Storage Unit Structural Scanner > --- WEAPON ----------- Medium Laser Spread Laser Light Assault Rifle > --- INVENTORY -------- Aluminum Leg Aluminum Leg Particle Cannon Assault Rifle Improved Light Cannon Grenade Launcher Mini Grenade Launcher Datajack [Rating: 11] Favorites ----------- Power Ion Engine Engine Ion Engine Propulsion Wheel Wheel Wheel Utility Structural Scanner Device Structural Scanner Storage High-capacity Storage Unit Weapon Medium Laser Energy Gun Medium Laser Energy Cannon Particle Cannon Ballistic Gun Light Assault Rifle Ballistic Cannon Improved Light Cannon Launcher Grenade Launcher Build | -11 -10 -9 ------- Run | Yrd Mat Mat Slots Evolved 2 | . . 2 Power 1 | . . 1 Propulsion . | . . . Utility . | . . . Weapon 1 | . . 1 Parts Attached 19 | 6 5 8 Power 3 | 1 . 2 Engine 3 | 1 . 2 Core . | . . . Reactor . | . . . Propulsion 3 | 2 . 1 Treads . | . . . Leg . | . . . Wheel 3 | 2 . 1 Hover . | . . . Flight . | . . . Utility 4 | . 4 . Device 2 | . 2 . Storage 2 | . 2 . Processor . | . . . Hackware . | . . . Protection . | . . . Artifact . | . . . Weapon 9 | 3 1 5 Energy Gun 3 | 1 . 2 Energy Cannon 1 | . . 1 Ballistic Gun 2 | 2 . . Ballistic Cannon 1 | . . 1 Launcher 2 | . 1 1 Special Weapon . | . . . Impact Weapon . | . . . Slashing Weapon . | . . . Piercing Weapon . | . . . Special Melee Weapon . | . . . Unidentified Prototypes . | . . . Parts Lost 6 | . . 6 Power 2 | . . 2 Propulsion 2 | . . 2 Utility . | . . . Weapon 2 | . . 2 Highest Loss Streak 3 | . . 3 To Critical Strikes . | . . . Average Backups 6 | 2 5 7 Power . | . 1 . Propulsion 1 | 1 2 2 Utility . | . . . Weapon 2 | . 1 3 Tool/Special . | . . . Unused Backups 3 | . . 3 Power . | . . . Propulsion 2 | . . 2 Utility . | . . . Weapon . | . . . Tool/Special 1 | . . 1 Average Slot Usage (%) 80 | . 88 77 Engine 12 | . 14 11 Wheel 20 | . 28 17 Device 10 | . 8 11 Storage 10 | . 8 11 Energy Gun 14 | . 14 14 Ballistic Gun 8 | . 6 9 Ballistic Cannon 1 | . . 1 Launcher 3 | . 8 1 Peak Build Rating 11 | 5 7 11 Average Rating 7 | 3 6 8 On Entrance 4 | . 5 7 Naked Turns . | . . . Heaviest Build 55 | 9 51 55 Greatest Support 26 | 20 20 26 Greatest Overweight (x) 16 | . 2 16 Average Overweight (x) 1 | . . 2 Largest Inventory Capacity 20 | 5 20 20 Average Capacity 16 | 5 9 20 Most Carried 10 | 5 7 10 Average Carried 6 | 3 5 7 Final Capacity 20 | 5 20 20 Final Carried 6 | 5 6 5 Class Distribution -------------------- 62% | Mutant 37% | Skirmisher Dominant Class ---------------- Mutant | -10/Materials Skirmisher | -9/Materials Resources | -11 -10 -9 ----------- Run | Yrd Mat Mat Matter Collected 344 | 207 . 137 Remotely . | . . . Salvage Created 415 | . 55 360 Parts 52 | . 6 46 Haulers Intercepted 1 | . . 1 Recyclers Shooed . | . . . Parts Field Recycled . | . . . Retrieved Matter . | . . . Parts Self-Destructed . | . . . Prevented . | . . . Kills | -11 -10 -9 ------- Run | Yrd Mat Mat Combat Hostiles Destroyed 14 | . 1 13 Guns 11 | . 1 10 AOE 3 | . . 3 Classes Destroyed 7 | . 3 4 Worker 1 | . 1 . Builder 3 | . . 3 Hauler 1 | . . 1 Watcher 2 | . 1 1 Swarmer 5 | . . 5 Grunt 8 | . 1 7 Sentry 1 | . . 1 Best Kill Streak 6 | . 2 6 Combat Bots Only 5 | . 1 5 Max Kills in Single Turn 2 | . 1 2 Gunslinging . | . . . Exploded 2 | . . 2 Melee . | . . . Uniques/NPCs Destroyed . | . . . Combat | -11 -10 -9 -------- Run | Yrd Mat Mat Hostile Shots Fired 163 | . 5 158 Missed 58 | . 1 57 Hits 105 | . 4 101 Projectile 105 | . 4 101 AOE 1 | . . 1 Critical Strikes 1 | . . 1 Damage Taken 1261 | . 88 1173 Core 452 | . 41 411 Absorbed by Shields . | . . . Core Remaining (%) 91 | 100 83 . Volleys Fired 63 | . 10 53 Largest 3 | . 2 3 Hottest 135 | . 80 135 Shots Fired 121 | . 18 103 Gun 109 | . 14 95 Cannon 4 | . . 4 Launcher 8 | . 4 4 Special . | . . . Kinetic 37 | . 5 32 Thermal 76 | . 9 67 Explosive 8 | . 4 4 Electromagnetic . | . . . Robot Hit Streak 7 | . 5 7 Robot Miss Streak 8 | . 1 8 Penetration Max . | . . . Secondary Targets . | . . . Shots Hit Robots 64 | . 11 53 Core Hits 50 | . 5 45 Critical Kills . | . . . Critical Parts Destroyed . | . . . Critical Strikes 3 | . 1 2 Burn 3 | . 1 2 Melee Attacks . | . . . Impact . | . . . Slashing . | . . . Piercing . | . . . Sneak Attacks . | . . . Combat Hostiles . | . . . Follow-up Attacks . | . . . Damage Inflicted 1407 | . 197 1210 Guns 714 | . 85 629 Cannons 20 | . . 20 Explosions 673 | . 112 561 Melee . | . . . Ramming . | . . . Kinetic 179 | . 22 157 Thermal 555 | . 63 492 Explosive 673 | . 112 561 Electromagnetic . | . . . Impact . | . . . Slashing . | . . . Piercing . | . . . Highest Corruption . | . . . Average Corruption . | . . . Corruption Purged . | . . . Corruption Blocked . | . . . Overload Shots . | . . . Overflow Damage . | . . . Projectiles . | . . . Explosions . | . . . Melee . | . . . Knockbacks . | . . . Impact . | . . . Kinetic . | . . . Secondary . | . . . Self-Inflicted Damage 43 | . 43 . Shots 2 | . 2 . Rammed . | . . . Targets Rammed . | . . . Kicked . | . . . Crushed . | . . . Highest Temperature 522 | . 54 522 Average Temperature 103 | . 21 115 Received Heat Transfer 486 | . 24 462 Effects 5 | . . 5 Energy Bleed 1 | . . 1 Interference 2 | . . 2 Short Circuit 1 | . . 1 Damage (minor) 1 | . . 1 Siege Activations . | . . . Martial Activations . | . . . Shielding Activations . | . . . Robots Disrupted . | . . . Combat Hostiles . | . . . Robots Corrupted . | . . . Combat Hostiles . | . . . Parts Fried . | . . . Impact Corruptions . | . . . Robots Melted . | . . . Combat Hostiles . | . . . Parts Melted 3 | . 1 2 Heat Transferred 1344 | . 259 1085 Parts Sabotaged . | . . . Parts Stolen . | . . . Parts Stripped . | . . . Power Chain Reactions . | . . . Alert | -11 -10 -9 ------- Run | Yrd Mat Mat Maximum Alert Level . | . . . Low Security (%) 100 | 100 100 100 Level 1 . | . . . Level 2 . | . . . Level 3 . | . . . Level 4 . | . . . Level 5 . | . . . High Security . | . . . Max Security . | . . . Peak Influence 181 | . 31 181 Initial 6 | . . 6 Average 62 | . 8 87 Influence Increases 475 | . 76 399 Destroy 0b10 Robot/C 280 | . 20 260 Destroy 0b10 Robot/NC 35 | . 10 25 Destroy Leader 56 | . 2 54 Successful Hack 9 | . 5 4 Disable Machine 15 | . . 15 Destroy Structure 35 | . 24 11 Partial Spotted 15 | . 15 . Lose Combat Pursuer 30 | . . 30 Influence Decreases 384 | . 60 324 Entered New Map 10 | . . 10 Time Decay 314 | . 60 254 Lost Part 60 | . . 60 Squads Dispatched 1 | . . 1 Investigation 1 | . . 1 Extermination . | . . . Reinforcement . | . . . Assault . | . . . Garrison . | . . . Intercept . | . . . Searches Triggered . | . . . Construction Impeded . | . . . Haulers Reinforced . | . . . Active Scanning Responses . | . . . Cargo Convoy Interrupts . | . . . Stealth | -11 -10 -9 --------- Run | Yrd Mat Mat Distress Signals 1 | . . 1 Communications Jammed . | . . . Distress Signals . | . . . Times Spotted 29 | . 4 25 Peak Tracking Total 7 | . 2 7 Tactical Retreats 1 | . . 1 Traps | -11 -10 -9 ------- Run | Yrd Mat Mat Traps Triggered . | . . . Indirectly . | . . . Trap Hack Attempts . | . . . Triggered . | . . . Disarmed . | . . . Reprogrammed . | . . . Reused . | . . . Traps Extracted . | . . . Installed . | . . . Triggered . | . . . Machines | -11 -10 -9 ---------- Run | Yrd Mat Mat Machines Disabled 1 | . . 1 Max in Single Turn 1 | . . 1 Machines Repaired . | . . . Machines Dismantled . | . . . Machines Sabotaged . | . . . Overloaded Fab Kills . | . . . Hacking | -11 -10 -9 --------- Run | Yrd Mat Mat Machines Accessed 5 | . 2 3 Terminals 4 | . 2 2 Fabricators . | . . . Repair Stations . | . . . Recycling Units . | . . . Scanalyzers 1 | . . 1 Garrison Access . | . . . Total Hacks 15 | . 2 13 Successful 11 | . 1 10 Failed 4 | . 1 3 Catastrophic . | . . . Database Lockouts . | . . . Manual . | . . . Terminals 10 | . 2 8 Fabricators . | . . . Repair Stations . | . . . Recycling Units . | . . . Scanalyzers 5 | . . 5 Garrison Access . | . . . Terminal Hacks 7 | . 1 6 Record 4 | . . 4 Branch Access Points 1 | . . 1 Maintenance Status 1 | . . 1 Reinforcement Status 1 | . 1 . Fabricator Hacks . | . . . Repair Station Hacks . | . . . Recycling Unit Hacks . | . . . Scanalyzer 4 | . . 4 Insert Component 2 | . . 2 Analyze 2 | . . 2 Garrison Access Hacks . | . . . Unauthorized Hacks . | . . . Terminals . | . . . Fabricators . | . . . Repair Stations . | . . . Recycling Units . | . . . Scanalyzers . | . . . Garrison Access . | . . . Data Cores Recovered . | . . . Used . | . . . Hacking Detections 4 | . 1 3 Full Trace Events 3 | . . 3 Feedback Events . | . . . Feedback Blocked . | . . . Robot Schematics Acquired . | . . . Robots Built . | . . . Authchips . | . . . Time . | . . . Total Robot Build Rating . | . . . Part Schematics Acquired 2 | . . 2 Parts Built . | . . . Authchips . | . . . Time . | . . . Total Part Build Rating . | . . . Parts Repaired . | . . . Time . | . . . Parts Recycled . | . . . Recycled Matter . | . . . Retrieved Matter . | . . . Retrieved Components . | . . . Parts Scanalyzed 2 | . . 2 Part Schematics Acquired 2 | . . 2 Parts Damaged . | . . . Bothacking | -11 -10 -9 ------------ Run | Yrd Mat Mat Used RIF Installer . | . . . Robots Hacked . | . . . Non-combat . | . . . Combat . | . . . Robot Hacks Applied . | . . . Relay Couplers Released . | . . . Fabnet Peak Effective % . | . . . Robots Rewired . | . . . Allies Hacked . | . . . Hacks Repelled . | . . . Allies | -11 -10 -9 -------- Run | Yrd Mat Mat Total Allies . | . . . Largest Group . | . . . Highest-Rated Group . | . . . Highest-Rated Ally . | . . . Total Orders . | . . . Ally Attacks . | . . . Total Damage . | . . . Kills . | . . . Allies Corrupted . | . . . Allies Melted . | . . . Intel | -11 -10 -9 ------- Run | Yrd Mat Mat Active Infowar (turns) 703 | . 135 568 Structural 703 | . 135 568 Robot Analysis Total . | . . . Derelict Logs Recovered . | . . . Drone Launches . | . . . Drone Recoveries . | . . . Exploration | -11 -10 -9 ------------- Run | Yrd Mat Mat Turns Passed 816 | 47 201 568 Spaces Moved 522 | 40 186 296 Core 15 | 5 . 10 Treads . | . . . Legs . | . . . Wheels 507 | 35 186 286 Hover . | . . . Flight . | . . . Fastest Speed 50 | 50 80 105 Average Speed 112 | 76 85 135 Slowest Speed 850 | 80 110 850 Overloaded Moves . | . . . Propulsion Burnouts . | . . . Robots Hopped . | . . . Potential Cave-ins . | . . . Cave-ins Triggered . | . . . Exploration Rate (%) 23 | 4 41 26 Regions Visited 2 Branch Regions . Pre-discovered Areas . | . . . Known Exits Taken . | . . . Unknown Exits Taken 2 | 1 1 . Scrap Searched . | . . . Spaces Dug . | . . . Terrain Destroyed 38 | . 25 13 Melee . | . . . Projectile . | . . . AOE 38 | . 25 13 Terrain Rammed . | . . . Walls Destroyed . | . . . Machines Disabled . | . . . Actions | -11 -10 -9 --------- Run | Yrd Mat Mat Total 646 | 54 210 382 Wait 1 | 1 . . Move 520 | 39 185 296 Hop . | . . . Pick Up 21 | 8 5 8 Fast Attach 4 | 2 2 . Attach 17 | 3 3 11 Detach 3 | . . 3 Swap 6 | 1 1 4 Drop 11 | . 4 7 Fire 63 | . 10 53 Melee . | . . . Ram . | . . . Kick . | . . . Crush . | . . . Escape Stasis . | . . . Rewire . | . . . Trap . | . . . Miscellaneous . | . . . Route ------- -11/Scrapyard -10/Materials -9/Materials (discovered 3 exits: Min / Sto x2) History --------- Turn | Location | Event 10 | -11/Scrapyard | Discovered new exit (range 14) 48 | -11/Scrapyard | Entered Materials 222 | -10/Materials | Discovered new exit (range 5) 249 | -10/Materials | Entered another Materials area 249 | -9/Materials | Evolved 2 slots: Power x1, Weapon x1 652 | -9/Materials | Identified exit to Mines 652 | -9/Materials | Identified exit to Storage 742 | -9/Materials | Core integrity fell below 50% 774 | -9/Materials | Lost 3 parts (2p1n) 798 | -9/Materials | Core integrity fell below 20% 817 | -9/Materials | Destroyed by G-34 Mercenary with Small Laser Last Messages --------------- Dropped Med. Laser. Wheel destroyed. Dropped Spread Laser. Dropped Assault Rifle. Dropped Lgt. Assault Rifle. Neutrino Reactor explodes. Emergency Access malfunctions. U-05 Engineer builds a Door. U-05 Engineer lays Concrete. Ion Engine destroyed. Com. Wheel destroyed. Acquired Spread Laser. Lgt. Ion Engine destroyed. Critical hit (Burn: +37). Y-45 Defender destroyed. Imp. Light Cannon destroyed. Spread Laser destroyed. K-01 Serf collects debris. Acquired 47 matter. K-01 Serf collects debris. Map ----- +----------------------------------------------------+ | ##########??## ## # | | ## ###### + =* + | | ## #######+###+######= #### | | ## # #### ######= #### | | ## [ # #### ^######%[####### | | ## + #### ==[####### | | ## # #### =%=!= %%% | | #####/### #### [! *###### | | # [ # ### [!%= ###### | | # [ + [ ##??## | | # [ # T # ???? | | # # ##### # ???? | | # ##+######## """ # ???? | | # # # """ # ???? | | # ]# """ """ / """ # ???? | | # # "T" """ # # ???? | | # !!!# """ # + ???? | | # !!=+ # # ???? | | # !! # # ####### ##????? | | # # # # # # ????? | | # # [[= # ???????????????? | | ## #######g####### ???????????????? | | ########## ####### ???????????????? | | ####????## ##?????????????????????? | | ???????? # ##?????????????????????? | | ???????? #@##?????????????????????? | | ???????? #g##?????????????????????? | | ???????? # ?????????????????????? | | ???????? + ??????????????????????? | | ???????? # ?????????????????????? | | ???????? ### ##???????????????????? | | ???????? ### ##???????????????????? | | ???????????? ##???????????????????? | | ???????????? ##???????????????????? | | ???????????? ##???????????????????? | | ???????????? ##???????????????????? | | ??????????????????????????????????? | | ??????????????????????????????????? | | ??????????????????????????????????? | | ??????????????????????????????????? | | ??????????????????????????????????? | | ??????????????????????????????????? | | ??????????????????????????????????? | | ??????????????????????????????????? | | ??????????????????????????????????? | | ??????????????????????????????????? | | ??????????????????????????????????? | | ??????????????????????????????????? | | ??????????????????????????????????? | | ??????????????????????????????????? | +----------------------------------------------------+ Best States ------------- Heat Dissipation 28 Energy Generation 15 Energy Capacity 275 Matter Stores 247 Matter Capacity 300 Sight Range 16 Terrain Scan Density 10 Evasion (%) 44 Item Schematics ----------------- Ion Engine | -9/Materials | Scanalyzed Datajack | -9/Materials | Scanalyzed Robot Schematics ------------------ None Fabricated ------------ Nothing Repaired ---------- Nothing Alien Tech Used ----------------- None Achievements -------------- None Challenges ------------ None Game ------ Seed MyomerLongswordRigger Manual? 0 Play Time 00:16:51 Cumulative 3.9 hours Start 2025.10.06 @ 23:12:08 End 2025.10.06 @ 23:26:26 Sessions 1 Manual Loads 0 Difficulty Rogue Special Mode None Game No. 11 Rogue 11 Adventurer 0 Explorer 0 Win Type - Total 0 Types 0/0/0/0/0/0/0/0/0/0 Lore% 2 Gallery% 8 Achievement% 10 Wizard Run 0 Options --------- Layout 1 ASCII 0 Keyboard 0 Movement Mouse Keybinds 0 Fullscreen 1 Font 32/SmallcapsGlow Map View 50x35 Zoom Use 0% Tactical HUD 0 Map Filters NONE Filters NONE Steam 1 RUN: 6a853c06-81c8-4a0a-bc1f-15d826a15662